[Event "13 Open de Quenza"]
[Site "Quenza, France"]
[Date "2024.07.07"]
[Round "4.5"]
[White "Mullon, Jean-Baptiste"]
[Black "Fedorchuk, Sergey A."]
[Result "0-1"]
[TimeControl "5min+3s/move"]
[WhiteElo "2315"]
[BlackElo "2554"]

1. e4 {[%clk 00:05:03]} {[%emt 00:00:02]} c5 {[%clk 00:05:03]} {[%emt
00:00:02]} 2. Nf3 {[%clk 00:05:03]} {[%emt 00:00:01]} e6 {[%clk 00:05:03]}
{[%emt 00:00:02]} 3. d4 {[%clk 00:05:03]} {[%emt 00:00:02]} cxd4 {[%clk
00:05:03]} {[%emt 00:00:02]} 4. Nxd4 {[%clk 00:05:03]} {[%emt 00:00:02]} Nc6
{[%clk 00:05:03]} {[%emt 00:00:02]} 5. Nc3 {[%clk 00:05:03]} {[%emt 00:00:03]}
d6 {[%clk 00:05:03]} {[%emt 00:00:02]} 6. Be3 {[%clk 00:05:01]} {[%emt
00:00:05]} a6 {[%clk 00:05:03]} {[%emt 00:00:03]} 7. f4 {[%clk 00:04:51]}
{[%emt 00:00:13]} Nge7 {[%clk 00:04:49]} {[%emt 00:00:17]} 8. Qd2 {[%clk
00:04:33]} {[%emt 00:00:22]} Nxd4 {[%clk 00:04:39]} {[%emt 00:00:13]} 9. Qxd4
{[%clk 00:04:33]} {[%emt 00:00:02]} Nc6 {[%clk 00:04:39]} {[%emt 00:00:02]} 10.
Qb6 {[%clk 00:04:33]} {[%emt 00:00:03]} Qxb6 {[%clk 00:04:05]} {[%emt
00:00:36]} 11. Bxb6 {[%clk 00:04:33]} {[%emt 00:00:02]} Bd7 {[%clk 00:04:05]}
{[%emt 00:00:01]} 12. O-O-O {[%clk 00:04:29]} {[%emt 00:00:07]} Rc8 {[%clk
00:04:05]} {[%emt 00:00:02]} 13. a3 {[%clk 00:03:15]} {[%emt 00:01:18]} Be7
{[%clk 00:04:00]} {[%emt 00:00:08]} 14. h4 {[%clk 00:03:15]} {[%emt 00:00:02]}
h5 {[%clk 00:03:54]} {[%emt 00:00:09]} 15. Be2 {[%clk 00:03:15]} {[%emt
00:00:02]} Nb8 {[%clk 00:03:49]} {[%emt 00:00:08]} 16. Rh3 {[%clk 00:02:59]}
{[%emt 00:00:19]} Bc6 {[%clk 00:03:46]} {[%emt 00:00:06]} 17. Bd4 {[%clk
00:02:56]} {[%emt 00:00:07]} Kf8 {[%clk 00:03:38]} {[%emt 00:00:12]} 18. g4
{[%clk 00:02:44]} {[%emt 00:00:15]} hxg4 {[%clk 00:03:28]} {[%emt 00:00:13]} 19.
Bxg4 {[%clk 00:02:44]} {[%emt 00:00:01]} Nd7 {[%clk 00:03:28]} {[%emt
00:00:02]} 20. h5 {[%clk 00:02:43]} {[%emt 00:00:04]} Bf6 {[%clk 00:03:21]}
{[%emt 00:00:10]} 21. Bxf6 {[%clk 00:02:34]} {[%emt 00:00:12]} Nxf6 {[%clk
00:03:21]} {[%emt 00:00:02]} 22. Bf3 {[%clk 00:02:34]} Ke7 {[%clk 00:03:21]}
{[%emt 00:00:02]} 23. Rg3 {[%clk 00:02:30]} {[%emt 00:00:07]} Rh7 {[%clk
00:03:21]} {[%emt 00:00:01]} 24. Rg5 {[%clk 00:02:13]} {[%emt 00:00:21]} Rch8
{[%clk 00:03:18]} {[%emt 00:00:06]} 25. Rdg1 {[%clk 00:01:46]} {[%emt
00:00:29]} Nxh5 {[%clk 00:03:01]} {[%emt 00:00:20]} 26. Bxh5 {[%clk 00:01:46]}
{[%emt 00:00:02]} Rxh5 {[%clk 00:03:01]} {[%emt 00:00:01]} 27. Rxg7 {[%clk
00:01:46]} {[%emt 00:00:02]} Rh4 {[%clk 00:02:59]} {[%emt 00:00:05]} 28. R7g4
{[%clk 00:01:46]} {[%emt 00:00:02]} Rxg4 {[%clk 00:02:58]} {[%emt 00:00:05]} 29.
Rxg4 {[%clk 00:01:46]} {[%emt 00:00:01]} Rh2 {[%clk 00:02:58]} {[%emt
00:00:01]} 30. b4 {[%clk 00:01:19]} {[%emt 00:00:31]} Rh7 {[%clk 00:02:10]}
{[%emt 00:00:50]} 31. a4 {[%clk 00:01:19]} {[%emt 00:00:04]} Bxe4 {[%clk
00:02:05]} {[%emt 00:00:08]} 32. Nxe4 {[%clk 00:01:19]} {[%emt 00:00:02]} f5
{[%emt 00:00:04]} 0-1

[Event "13 Open de Quenza"]
[Site "Quenza, France"]
[Date "2024.07.07"]
[Round "4.6"]
[White "Dourerassou, Jonathan"]
[Black "Tomasi, Albert"]
[Result "1-0"]
[TimeControl "5min+3s/move"]
[WhiteElo "2422"]
[BlackElo "2295"]

1. e4 {[%clk 00:05:03]} c5 {[%clk 00:05:03]} {[%emt 00:00:04]} 2. Nf3 {[%clk
00:05:03]} {[%emt 00:00:01]} d6 {[%clk 00:05:03]} {[%emt 00:00:02]} 3. Bb5+
{[%clk 00:05:03]} {[%emt 00:00:02]} Nd7 {[%clk 00:05:03]} {[%emt 00:00:02]} 4.
a4 {[%clk 00:05:03]} {[%emt 00:00:01]} Ngf6 {[%clk 00:04:59]} {[%emt 00:00:07]}
5. Nc3 {[%clk 00:05:03]} {[%emt 00:00:01]} g6 {[%clk 00:04:42]} {[%emt
00:00:19]} 6. O-O {[%clk 00:05:03]} {[%emt 00:00:03]} Bg7 {[%clk 00:04:42]}
{[%emt 00:00:02]} 7. Re1 {[%clk 00:04:55]} {[%emt 00:00:11]} O-O {[%clk
00:04:42]} {[%emt 00:00:04]} 8. d3 {[%clk 00:04:48]} {[%emt 00:00:10]} Ng4
{[%clk 00:03:39]} {[%emt 00:01:05]} 9. Bf4 {[%clk 00:04:33]} {[%emt 00:00:17]}
Nge5 {[%clk 00:03:33]} {[%emt 00:00:09]} 10. Nxe5 {[%clk 00:04:25]} {[%emt
00:00:12]} Nxe5 {[%clk 00:03:33]} {[%emt 00:00:02]} 11. Qd2 {[%emt 00:00:19]}
a6 {[%clk 00:03:21]} {[%emt 00:00:07]} 12. Bc4 {[%clk 00:04:18]} {[%emt
00:00:01]} Nxc4 {[%clk 00:02:57]} {[%emt 00:00:27]} 13. dxc4 {[%clk 00:04:18]}
{[%emt 00:00:01]} Re8 {[%clk 00:02:24]} {[%emt 00:00:36]} 14. e5 {[%clk
00:04:12]} {[%emt 00:00:09]} dxe5 {[%clk 00:02:08]} {[%emt 00:00:19]} 15. Qxd8
{[%clk 00:04:12]} {[%emt 00:00:02]} Rxd8 {[%clk 00:02:08]} {[%emt 00:00:01]} 16.
Bxe5 {[%clk 00:04:12]} {[%emt 00:00:01]} Be6 {[%clk 00:02:03]} {[%emt
00:00:08]} 17. Bxg7 {[%clk 00:04:03]} {[%emt 00:00:12]} Kxg7 {[%clk 00:02:03]}
{[%emt 00:00:02]} 18. b3 {[%clk 00:04:03]} {[%emt 00:00:01]} Rd4 {[%clk
00:01:53]} {[%emt 00:00:13]} 19. Ne4 {[%clk 00:04:00]} {[%emt 00:00:06]} Rc8
{[%clk 00:01:33]} {[%emt 00:00:23]} 20. Ng5 {[%clk 00:04:00]} {[%emt 00:00:02]}
Kf6 {[%clk 00:01:16]} {[%emt 00:00:21]} 21. Ne4+ {[%clk 00:03:23]} {[%emt
00:00:40]} Kg7 {[%clk 00:01:10]} {[%emt 00:00:08]} 22. Re2 {[%clk 00:03:23]}
{[%emt 00:00:01]} h6 {[%clk 00:01:09]} {[%emt 00:00:04]} 23. f3 {[%clk
00:03:23]} {[%emt 00:00:02]} Bd7 {[%clk 00:01:03]} {[%emt 00:00:09]} 24. a5
{[%clk 00:03:22]} {[%emt 00:00:04]} Rc6 {[%clk 00:00:51]} {[%emt 00:00:15]} 25.
Kf2 {[%clk 00:03:22]} {[%emt 00:00:02]} Bf5 {[%clk 00:00:43]} {[%emt 00:00:11]}
26. Nc3 {[%clk 00:03:17]} {[%emt 00:00:07]} Be6 {[%clk 00:00:43]} {[%emt
00:00:02]} 27. g4 {[%clk 00:03:12]} {[%emt 00:00:08]} Kf6 {[%clk 00:00:37]}
{[%emt 00:00:10]} 28. Rae1 {[%clk 00:03:12]} {[%emt 00:00:02]} Kg5 {[%clk
00:00:32]} {[%emt 00:00:08]} 29. Kg3 {[%clk 00:03:12]} {[%emt 00:00:03]} h5
{[%clk 00:00:19]} {[%emt 00:00:16]} 30. h4+ {[%clk 00:02:59]} {[%emt 00:00:17]}
Kh6 {[%clk 00:00:19]} {[%emt 00:00:02]} 31. gxh5 {[%clk 00:02:55]} {[%emt
00:00:06]} Kxh5 {[%clk 00:00:19]} {[%emt 00:00:02]} 32. Re5+ {[%clk 00:02:55]}
{[%emt 00:00:01]} Kh6 {[%clk 00:00:19]} {[%emt 00:00:03]} 33. Ne4 {[%clk
00:02:55]} {[%emt 00:00:01]} f6 {[%clk 00:00:14]} {[%emt 00:00:08]} 34. Rxc5
{[%clk 00:02:54]} {[%emt 00:00:04]} Rxe4 {[%clk 00:00:08]} {[%emt 00:00:09]} 35.
Rxe4 {[%clk 00:02:54]} {[%emt 00:00:01]} Rxc5 {[%clk 00:00:08]} {[%emt
00:00:01]} 36. Rxe6 {[%clk 00:02:54]} {[%emt 00:00:01]} Rc7 {[%clk 00:00:07]}
{[%emt 00:00:04]} 37. Rb6 {[%clk 00:02:51]} {[%emt 00:00:06]} g5 {[%clk
00:00:05]} {[%emt 00:00:05]} 38. Kg4 {[%clk 00:02:49]} {[%emt 00:00:04]} gxh4
{[%clk 00:00:05]} {[%emt 00:00:02]} 39. Kxh4 {[%clk 00:02:49]} Kg6 {[%clk
00:00:05]} {[%emt 00:00:02]} 40. Kg4 {[%clk 00:02:49]} {[%emt 00:00:01]} e5
{[%clk 00:00:05]} {[%emt 00:00:02]} 41. Kg3 {[%clk 00:02:46]} {[%emt 00:00:06]}
Kf5 {[%clk 00:00:05]} {[%emt 00:00:01]} 42. Kf2 {[%clk 00:02:46]} Rc5 {[%clk
00:00:05]} {[%emt 00:00:03]} 43. Rxb7 {[%clk 00:02:45]} {[%emt 00:00:04]} Rxa5
{[%clk 00:00:05]} 44. Ke3 {[%clk 00:02:45]} {[%emt 00:00:02]} Ra2 {[%clk
00:00:05]} {[%emt 00:00:02]} 45. c3 {[%clk 00:02:45]} {[%emt 00:00:02]} Rc2
{[%clk 00:00:05]} {[%emt 00:00:03]} 46. Kd3 {[%clk 00:02:43]} {[%emt 00:00:04]}
Rc1 {[%clk 00:00:05]} {[%emt 00:00:02]} 47. c5 {[%clk 00:02:43]} {[%emt
00:00:01]} Kf4 {[%clk 00:00:05]} {[%emt 00:00:02]} 48. c6 {[%clk 00:02:43]}
{[%emt 00:00:02]} Rd1+ {[%clk 00:00:05]} {[%emt 00:00:02]} 49. Kc4 {[%clk
00:02:43]} {[%emt 00:00:01]} Rd8 {[%clk 00:00:04]} {[%emt 00:00:04]} 50. Rf7
{[%clk 00:02:43]} {[%emt 00:00:03]} f5 {[%clk 00:00:04]} {[%emt 00:00:02]} 51.
c7 {[%clk 00:02:43]} {[%emt 00:00:02]} Rc8 {[%clk 00:00:04]} {[%emt 00:00:01]}
52. Kd5 {[%clk 00:02:43]} {[%emt 00:00:01]} Ke4+ 53. Kxe4 1-0

[Event "13 Open de Quenza"]
[Site "Quenza, France"]
[Date "2024.07.07"]
[Round "4.7"]
[White "Batsiashvili, Nino"]
[Black "Maze, Sebastien"]
[Result "1-0"]
[TimeControl "5min+3s/move"]
[WhiteElo "2451"]
[BlackElo "2553"]

1. d4 {[%clk 00:05:03]} {[%emt 00:00:01]} Nf6 {[%clk 00:05:03]} {[%emt
00:00:01]} 2. c4 {[%clk 00:05:03]} {[%emt 00:00:02]} g6 {[%clk 00:05:03]} 3.
Nc3 {[%clk 00:05:03]} {[%emt 00:00:01]} Bg7 {[%clk 00:05:03]} {[%emt 00:00:01]}
4. g3 {[%clk 00:05:03]} {[%emt 00:00:02]} d6 {[%clk 00:05:03]} {[%emt
00:00:04]} 5. Bg2 {[%clk 00:05:03]} {[%emt 00:00:02]} O-O {[%clk 00:05:03]}
{[%emt 00:00:03]} 6. Nf3 {[%clk 00:05:03]} {[%emt 00:00:01]} Nbd7 {[%clk
00:04:58]} {[%emt 00:00:08]} 7. O-O {[%clk 00:05:01]} {[%emt 00:00:06]} e5
{[%clk 00:04:58]} {[%emt 00:00:01]} 8. e4 {[%clk 00:04:57]} {[%emt 00:00:07]}
Re8 {[%clk 00:04:53]} {[%emt 00:00:08]} 9. Be3 {[%clk 00:04:57]} {[%emt
00:00:02]} exd4 {[%clk 00:04:50]} {[%emt 00:00:06]} 10. Nxd4 {[%clk 00:04:57]}
{[%emt 00:00:02]} Nc5 {[%clk 00:04:44]} {[%emt 00:00:09]} 11. f3 {[%clk
00:04:41]} {[%emt 00:00:19]} a5 {[%clk 00:04:33]} {[%emt 00:00:14]} 12. Qd2
{[%clk 00:04:29]} {[%emt 00:00:15]} Nfd7 {[%clk 00:04:33]} {[%emt 00:00:03]} 13.
Rad1 {[%clk 00:04:14]} {[%emt 00:00:17]} Ne5 {[%clk 00:04:25]} {[%emt
00:00:12]} 14. b3 {[%clk 00:04:14]} {[%emt 00:00:02]} a4 {[%clk 00:04:24]}
{[%emt 00:00:04]} 15. Bf2 {[%clk 00:04:00]} {[%emt 00:00:17]} axb3 {[%clk
00:04:14]} {[%emt 00:00:13]} 16. axb3 {[%clk 00:04:00]} {[%emt 00:00:01]} Bd7
{[%clk 00:03:55]} {[%emt 00:00:23]} 17. h3 {[%clk 00:03:24]} {[%emt 00:00:38]}
Ra3 {[%clk 00:03:05]} {[%emt 00:00:53]} 18. f4 {[%clk 00:03:01]} {[%emt
00:00:27]} Ned3 {[%emt 00:00:16]} 19. Be3 {[%clk 00:02:47]} {[%emt 00:00:08]}
Qc8 {[%clk 00:02:13]} {[%emt 00:00:50]} 20. Kh2 {[%clk 00:02:19]} {[%emt
00:00:31]} Bc6 {[%clk 00:01:33]} {[%emt 00:00:43]} 21. Nxc6 {[%clk 00:01:30]}
{[%emt 00:00:52]} bxc6 {[%clk 00:01:33]} 22. e5 {[%clk 00:01:30]} {[%emt
00:00:01]} dxe5 {[%clk 00:01:26]} {[%emt 00:00:10]} 23. Ne4 {[%clk 00:01:30]}
{[%emt 00:00:02]} Nxe4 {[%clk 00:01:13]} {[%emt 00:00:17]} 24. Qxd3 {[%clk
00:01:24]} {[%emt 00:00:09]} exf4 {[%clk 00:00:52]} {[%emt 00:00:25]} 25. Rxf4
{[%clk 00:01:24]} {[%emt 00:00:03]} Nd6 {[%clk 00:00:29]} {[%emt 00:00:25]} 26.
Bxc6 {[%clk 00:01:03]} {[%emt 00:00:23]} Ra2+ {[%clk 00:00:29]} {[%emt
00:00:01]} 27. Rf2 {[%clk 00:00:49]} {[%emt 00:00:17]} Rxf2+ {[%clk 00:00:29]}
{[%emt 00:00:03]} 28. Bxf2 {[%clk 00:00:49]} Rd8 {[%clk 00:00:18]} {[%emt
00:00:14]} 29. c5 {[%clk 00:00:42]} {[%emt 00:00:09]} Nb7 {[%clk 00:00:18]}
{[%emt 00:00:01]} 30. Qe2 {[%clk 00:00:38]} {[%emt 00:00:07]} Rxd1 {[%clk
00:00:16]} {[%emt 00:00:05]} 31. Qxd1 {[%clk 00:00:38]} Nd8 {[%clk 00:00:16]}
{[%emt 00:00:03]} 32. Qd7 {[%clk 00:00:31]} {[%emt 00:00:10]} Qb8 {[%clk
00:00:16]} 33. Bd5 {[%clk 00:00:31]} c6 {[%clk 00:00:13]} {[%emt 00:00:06]} 34.
Qe8+ {[%clk 00:00:28]} {[%emt 00:00:06]} Bf8 {[%clk 00:00:13]} {[%emt
00:00:01]} 35. Bxf7+ {[%clk 00:00:27]} {[%emt 00:00:04]} Kg7 {[%clk 00:00:13]}
{[%emt 00:00:03]} 36. Bd4+ {[%clk 00:00:27]} {[%emt 00:00:01]} 1-0

[Event "13 Open de Quenza"]
[Site "Quenza, France"]
[Date "2024.07.07"]
[Round "4.8"]
[White "Maurizzi, Marc Andria"]
[Black "Ciobanu, Camelia-Adriana"]
[Result "1-0"]
[TimeControl "5min+3s/move"]
[WhiteElo "2620"]
[BlackElo "2093"]

1. e4 {[%clk 00:05:03]} e6 {[%clk 00:05:03]} {[%emt 00:00:02]} 2. d4 {[%clk
00:05:03]} {[%emt 00:00:01]} d5 {[%clk 00:05:03]} {[%emt 00:00:01]} 3. e5
{[%clk 00:05:03]} {[%emt 00:00:01]} c5 {[%clk 00:05:03]} 4. c3 {[%clk
00:05:03]} {[%emt 00:00:02]} Nc6 {[%clk 00:05:03]} 5. Nf3 {[%clk 00:05:03]}
Nge7 {[%clk 00:05:03]} {[%emt 00:00:02]} 6. h4 {[%clk 00:05:03]} Bd7 {[%clk
00:04:57]} {[%emt 00:00:10]} 7. Bd3 {[%clk 00:04:59]} {[%emt 00:00:07]} cxd4
{[%clk 00:04:50]} {[%emt 00:00:10]} 8. cxd4 {[%clk 00:04:59]} Qb6 {[%clk
00:04:50]} 9. Kf1 {[%clk 00:04:59]} {[%emt 00:00:03]} Nb4 {[%clk 00:04:38]}
{[%emt 00:00:15]} 10. Be2 {[%clk 00:04:59]} Rc8 {[%clk 00:04:38]} 11. Nc3
{[%clk 00:04:59]} f6 {[%clk 00:04:07]} {[%emt 00:00:34]} 12. h5 {[%clk
00:04:57]} {[%emt 00:00:04]} f5 {[%clk 00:03:56]} {[%emt 00:00:14]} 13. Rh3
{[%clk 00:04:51]} {[%emt 00:00:09]} a5 {[%clk 00:03:49]} {[%emt 00:00:10]} 14.
a3 {[%clk 00:04:50]} {[%emt 00:00:03]} Na6 {[%clk 00:03:49]} {[%emt 00:00:03]}
15. Kg1 {[%clk 00:04:50]} {[%emt 00:00:04]} Nc7 {[%clk 00:03:39]} {[%emt
00:00:13]} 16. h6 {[%clk 00:04:42]} {[%emt 00:00:10]} g6 {[%clk 00:03:32]}
{[%emt 00:00:10]} 17. Bg5 {[%clk 00:04:31]} {[%emt 00:00:14]} Ng8 {[%clk
00:02:20]} {[%emt 00:01:16]} 18. Na4 {[%clk 00:04:17]} {[%emt 00:00:17]} Qa7
{[%clk 00:02:04]} {[%emt 00:00:20]} 19. Rc1 {[%clk 00:04:17]} {[%emt 00:00:02]}
Be7 {[%clk 00:01:52]} {[%emt 00:00:15]} 20. Bd2 {[%clk 00:04:01]} {[%emt
00:00:18]} Bd8 {[%clk 00:01:30]} {[%emt 00:00:24]} 21. Nc5 {[%clk 00:03:59]}
{[%emt 00:00:05]} Ne7 {[%clk 00:01:09]} {[%emt 00:00:24]} 22. Ng5 {[%clk
00:03:55]} {[%emt 00:00:08]} Nc6 {[%clk 00:01:05]} {[%emt 00:00:07]} 23. Rd3
{[%clk 00:03:39]} {[%emt 00:00:18]} b6 {[%clk 00:00:51]} {[%emt 00:00:18]} 24.
Nxd7 {[%clk 00:03:39]} {[%emt 00:00:02]} Kxd7 {[%clk 00:00:51]} {[%emt
00:00:01]} 25. Nf7 {[%clk 00:03:39]} {[%emt 00:00:01]} Rf8 {[%clk 00:00:50]}
{[%emt 00:00:04]} 26. Nd6 {[%clk 00:03:36]} {[%emt 00:00:03]} Rb8 {[%clk
00:00:37]} {[%emt 00:00:19]} 27. Qc2 {[%clk 00:03:33]} {[%emt 00:00:06]} Qa8
{[%clk 00:00:15]} {[%emt 00:00:25]} 28. Rc3 {[%clk 00:03:33]} {[%emt 00:00:03]}
1-0

[Event "13 Open de Quenza"]
[Site "Quenza, France"]
[Date "2024.07.07"]
[Round "4.9"]
[White "Ratier-Fontana, Matteo"]
[Black "Travadon, Loic"]
[Result "0-1"]
[TimeControl "5min+3s/move"]
[WhiteElo "2153"]
[BlackElo "2458"]

1. d4 {[%clk 00:05:03]} {[%emt 00:08:47]} Nf6 {[%clk 00:05:03]} {[%emt
00:00:10]} 2. Bf4 {[%clk 00:05:03]} {[%emt 00:00:01]} d5 {[%clk 00:04:49]}
{[%emt 00:00:16]} 3. Nf3 {[%clk 00:05:03]} {[%emt 00:00:02]} c5 {[%clk
00:04:22]} {[%emt 00:00:31]} 4. e3 {[%clk 00:05:03]} {[%emt 00:00:01]} Nc6
{[%clk 00:04:18]} {[%emt 00:00:07]} 5. Nbd2 {[%clk 00:05:03]} {[%emt 00:00:01]}
e6 {[%clk 00:04:16]} {[%emt 00:00:05]} 6. c3 {[%clk 00:05:03]} Be7 {[%clk
00:04:05]} {[%emt 00:00:14]} 7. Bd3 {[%clk 00:04:57]} {[%emt 00:00:09]} Nh5
{[%clk 00:04:00]} {[%emt 00:00:08]} 8. Bg3 {[%clk 00:04:57]} {[%emt 00:00:01]}
g6 {[%clk 00:04:00]} {[%emt 00:00:03]} 9. O-O {[%clk 00:04:47]} {[%emt
00:00:13]} Nxg3 {[%clk 00:04:00]} {[%emt 00:00:02]} 10. hxg3 {[%clk 00:04:47]}
{[%emt 00:00:01]} O-O {[%clk 00:04:00]} {[%emt 00:00:03]} 11. dxc5 {[%clk
00:04:46]} {[%emt 00:00:04]} Bxc5 {[%clk 00:03:58]} {[%emt 00:00:06]} 12. e4
{[%clk 00:04:46]} Be7 {[%clk 00:03:49]} {[%emt 00:00:12]} 13. Qe2 {[%clk
00:04:20]} {[%emt 00:00:29]} Re8 {[%clk 00:03:37]} {[%emt 00:00:16]} 14. Rfd1
{[%clk 00:04:18]} {[%emt 00:00:05]} Bf6 {[%clk 00:03:37]} {[%emt 00:00:03]} 15.
Nb3 {[%clk 00:03:51]} {[%emt 00:00:29]} dxe4 {[%clk 00:03:33]} {[%emt
00:00:06]} 16. Bxe4 {[%clk 00:03:50]} {[%emt 00:00:04]} Qc7 {[%clk 00:03:33]}
{[%emt 00:00:02]} 17. Nc5 {[%clk 00:03:43]} {[%emt 00:00:10]} Be7 {[%clk
00:03:25]} {[%emt 00:00:11]} 18. Nd3 {[%clk 00:03:31]} {[%emt 00:00:15]} a6
{[%clk 00:03:23]} {[%emt 00:00:06]} 19. Rac1 {[%clk 00:03:19]} {[%emt
00:00:15]} Na5 {[%clk 00:03:23]} {[%emt 00:00:03]} 20. Nde5 {[%clk 00:03:15]}
{[%emt 00:00:07]} Bf6 {[%clk 00:03:13]} {[%emt 00:00:13]} 21. Bb1 {[%clk
00:03:12]} {[%emt 00:00:06]} Nc6 {[%clk 00:03:13]} {[%emt 00:00:01]} 22. Nc4
{[%clk 00:03:06]} {[%emt 00:00:08]} Rd8 {[%clk 00:03:12]} {[%emt 00:00:05]} 23.
Rxd8+ {[%clk 00:03:06]} {[%emt 00:00:01]} Bxd8 {[%clk 00:02:35]} {[%emt
00:00:39]} 24. Rd1 {[%clk 00:03:05]} {[%emt 00:00:04]} b5 {[%clk 00:02:10]}
{[%emt 00:00:29]} 25. Nd6 {[%clk 00:02:58]} {[%emt 00:00:10]} Be7 {[%clk
00:02:10]} {[%emt 00:00:03]} 26. Qd2 {[%clk 00:02:58]} Bb7 {[%clk 00:02:05]}
{[%emt 00:00:08]} 27. Nxb7 {[%clk 00:02:58]} {[%emt 00:00:02]} Qxb7 {[%clk
00:02:05]} {[%emt 00:00:02]} 28. Be4 {[%clk 00:02:34]} {[%emt 00:00:26]} Rd8
{[%clk 00:02:05]} {[%emt 00:00:02]} 29. Qe2 {[%clk 00:02:34]} Rxd1+ {[%clk
00:02:05]} {[%emt 00:00:03]} 30. Qxd1 {[%clk 00:02:34]} {[%emt 00:00:01]} Qc7
{[%clk 00:02:05]} {[%emt 00:00:02]} 31. Qe2 {[%clk 00:01:53]} {[%emt 00:00:44]}
Bf6 {[%clk 00:02:03]} {[%emt 00:00:05]} 32. Qd3 {[%clk 00:01:36]} {[%emt
00:00:20]} Na5 {[%clk 00:02:02]} {[%emt 00:00:05]} 33. Nd2 {[%clk 00:01:27]}
{[%emt 00:00:11]} Kg7 {[%clk 00:01:49]} {[%emt 00:00:15]} 34. Bf3 {[%clk
00:01:12]} {[%emt 00:00:19]} Nc6 {[%clk 00:01:35]} {[%emt 00:00:17]} 35. Bxc6
{[%clk 00:00:55]} {[%emt 00:00:20]} Qxc6 {[%clk 00:01:35]} {[%emt 00:00:01]} 36.
Ne4 {[%clk 00:00:55]} {[%emt 00:00:01]} Be5 {[%clk 00:01:34]} {[%emt 00:00:04]}
37. g4 {[%clk 00:00:49]} {[%emt 00:00:09]} a5 {[%clk 00:01:23]} {[%emt
00:00:14]} 38. a3 {[%clk 00:00:43]} {[%emt 00:00:09]} b4 {[%clk 00:01:22]}
{[%emt 00:00:04]} 39. axb4 {[%clk 00:00:43]} axb4 {[%clk 00:01:22]} 40. cxb4
{[%clk 00:00:20]} {[%emt 00:00:27]} Qc1+ {[%clk 00:01:22]} 41. Qf1 {[%clk
00:00:20]} {[%emt 00:00:01]} Qxb2 {[%clk 00:01:22]} {[%emt 00:00:02]} 42. b5
{[%clk 00:00:20]} Bd4 {[%clk 00:01:22]} {[%emt 00:00:02]} 43. Qc4 {[%clk
00:00:18]} {[%emt 00:00:05]} Qb1+ {[%clk 00:01:22]} {[%emt 00:00:02]} 0-1

[Event "13 Open de Quenza"]
[Site "Quenza, France"]
[Date "2024.07.07"]
[Round "4.10"]
[White "Relange, Eloi"]
[Black "Bigonnet, Jean-Michel"]
[Result "1-0"]
[TimeControl "5min+3s/move"]
[WhiteElo "2440"]
[BlackElo "2100"]

1. d4 {[%clk 00:05:03]} Nf6 {[%clk 00:05:03]} {[%emt 00:00:02]} 2. c4 {[%clk
00:05:03]} {[%emt 00:00:01]} e6 {[%clk 00:05:03]} {[%emt 00:00:03]} 3. Nc3
{[%clk 00:05:03]} {[%emt 00:00:01]} Bb4 {[%clk 00:05:03]} {[%emt 00:00:03]} 4.
Qc2 {[%clk 00:05:03]} {[%emt 00:00:02]} O-O {[%clk 00:04:59]} {[%emt 00:00:08]}
5. a3 {[%clk 00:05:03]} {[%emt 00:00:02]} Bxc3+ {[%clk 00:04:59]} {[%emt
00:00:02]} 6. Qxc3 {[%clk 00:05:03]} {[%emt 00:00:01]} c5 {[%clk 00:04:48]}
{[%emt 00:00:14]} 7. dxc5 {[%clk 00:04:58]} {[%emt 00:00:08]} Ne4 {[%clk
00:04:38]} {[%emt 00:00:13]} 8. Qc2 {[%clk 00:04:38]} {[%emt 00:00:23]} f5
{[%clk 00:04:11]} {[%emt 00:00:31]} 9. Nf3 {[%clk 00:04:19]} {[%emt 00:00:21]}
a5 {[%clk 00:03:58]} {[%emt 00:00:17]} 10. Rb1 {[%clk 00:03:24]} {[%emt
00:00:58]} a4 {[%clk 00:03:44]} {[%emt 00:00:17]} 11. g3 {[%clk 00:03:20]}
{[%emt 00:00:07]} b6 {[%clk 00:02:47]} {[%emt 00:01:00]} 12. cxb6 {[%clk
00:03:14]} {[%emt 00:00:09]} Qxb6 {[%clk 00:02:46]} {[%emt 00:00:04]} 13. Be3
{[%clk 00:03:14]} {[%emt 00:00:01]} Qa5+ {[%clk 00:02:46]} {[%emt 00:00:01]} 14.
Nd2 {[%clk 00:03:12]} {[%emt 00:00:05]} Bb7 {[%clk 00:02:23]} {[%emt 00:00:27]}
15. Bg2 {[%clk 00:03:05]} {[%emt 00:00:10]} Nc6 {[%clk 00:01:49]} {[%emt
00:00:37]} 16. O-O {[%clk 00:02:59]} {[%emt 00:00:08]} d5 {[%clk 00:01:17]}
{[%emt 00:00:36]} 17. cxd5 {[%clk 00:02:46]} {[%emt 00:00:16]} exd5 {[%clk
00:01:17]} {[%emt 00:00:03]} 18. Nxe4 {[%clk 00:02:30]} {[%emt 00:00:19]} dxe4
{[%clk 00:01:13]} {[%emt 00:00:07]} 19. Qc5 {[%clk 00:02:30]} {[%emt 00:00:01]}
Qxc5 {[%clk 00:00:53]} {[%emt 00:00:23]} 20. Bxc5 {[%emt 00:00:01]} Rfc8 21.
Rfd1 {[%clk 00:01:53]} {[%emt 00:00:40]} Na5 {[%clk 00:00:43]} {[%emt
00:00:13]} 22. Bb4 {[%clk 00:01:49]} {[%emt 00:00:08]} Nb3 {[%clk 00:00:43]}
{[%emt 00:00:03]} 23. Rd7 {[%clk 00:01:45]} {[%emt 00:00:07]} Bc6 {[%clk
00:00:43]} {[%emt 00:00:03]} 24. Re7 {[%clk 00:01:45]} {[%emt 00:00:02]} Re8
{[%clk 00:00:38]} {[%emt 00:00:08]} 25. Rxe8+ {[%clk 00:01:38]} {[%emt
00:00:10]} Rxe8 {[%clk 00:00:38]} 26. Rd1 {[%clk 00:01:38]} {[%emt 00:00:01]}
Kf7 {[%clk 00:00:34]} {[%emt 00:00:06]} 27. e3 {[%clk 00:01:28]} {[%emt
00:00:15]} Bb5 {[%clk 00:00:29]} {[%emt 00:00:08]} 28. Rd5 {[%clk 00:01:28]}
{[%emt 00:00:02]} Bd3 {[%clk 00:00:22]} {[%emt 00:00:11]} 29. Rxf5+ {[%clk
00:01:28]} {[%emt 00:00:02]} Kg6 {[%clk 00:00:11]} {[%emt 00:00:14]} 30. Rd5
{[%clk 00:01:26]} {[%emt 00:00:04]} Rc8 {[%clk 00:00:08]} {[%emt 00:00:07]} 31.
Bc3 {[%clk 00:01:26]} {[%emt 00:00:01]} Bc4 {[%clk 00:00:05]} {[%emt 00:00:06]}
32. Bxe4+ {[%clk 00:01:23]} {[%emt 00:00:06]} Kh6 {[%clk 00:00:05]} {[%emt
00:00:02]} 33. Rd7 {[%clk 00:01:21]} {[%emt 00:00:05]} g6 {[%clk 00:00:05]}
{[%emt 00:00:03]} 34. h4 {[%clk 00:01:21]} {[%emt 00:00:03]} Nc1 {[%clk
00:00:05]} {[%emt 00:00:03]} 35. Bg7+ {[%clk 00:01:21]} {[%emt 00:00:01]} 1-0